lending/lending_fUSD_20260328
["ID","MTS","AMOUNT","RATE_DAILY","PERIOD"]
[418991000,1774713096603,-2187.96,0.00046575,30]
[418991001,1774713096613,-1640.97,0.00046575,30]
[418991002,1774713096623,-1369.92,0.00046575,30]
[418991003,1774713096632,-1641.13,0.00046575,30]
[418991004,1774713096643,-1990.0,0.00046575,120]
[418991005,1774713096652,-500.0,0.00046575,120]
[418991006,1774713096663,-611.22259527,0.00046575,120]
[418991007,1774713096672,-216.0,0.00046575,120]
[418991008,1774713096683,-150.0,0.00046575,120]
[418991009,1774713096693,-180.0,0.00046575,120]
[418991010,1774713096703,-237069.22102812,0.00046575,30]
[418991011,1774713096735,-820.618562,0.00027397,2]
[418991012,1774713096746,-203.859965,0.00033,7]
[418991013,1774713096756,-1330.27535111,0.00045882,18]
[418991014,1774713096766,-7225.96897188,0.00046575,30]
[418991015,1774713096776,-158.9553,0.00046575,120]
[418991016,1774713096786,-214.27733649,0.00046583,120]
[418991017,1774713096795,-219.57378244,0.00046583,120]
[418991018,1774713096806,-227.75456797,0.00046583,120]
[418991019,1774713096817,-500.0,0.00046588,30]
[418991020,1774713096828,-156.91468531,0.00046598,2]
[418991021,1774713096837,-3100.80730042,0.000466,120]
[418991022,1774713096848,-355489.61946166,0.000466,50]
[418991023,1774713096862,-305.85529548,0.000466,50]
[418991024,1774713096874,-1686.53756833,0.000466,50]
[418991025,1774713096886,-413.08,0.000466,50]
[418991026,1774713096898,-1562.75724253,0.000466,50]
[418991027,1774713096911,-3351.9,0.000466,50]
[418991028,1774713096922,-429.60913555,0.000466,50]
[418991029,1774713097354,1634.57351291,0.00012303,2]
[418991030,1774713097394,1634.57351291,0.00012303,2]
[418991031,1774713097759,2500.0,0.00012236,2]
[418991032,1774713097857,403.21,0.00011851,2]
[418991033,1774713098403,500.0,0.00012335,2]
[418991034,1774713098439,500.0,0.00012335,2]
[418991035,1774713098476,500.0,0.00012335,2]
[418991036,1774713098518,500.0,0.00012335,2]
[418991037,1774713098557,500.0,0.00012335,2]
[418991038,1774713098598,500.0,0.00012335,2]
[418991039,1774713098635,500.0,0.00012335,2]
[418991040,1774713098672,327.65297418,0.00012335,2]
[418991044,1774713139377,-1600.0,0.0001141,2]
[418991045,1774713139408,-300.0,0.00012234,2]
[418991046,1774713139671,-5487.29,0.00012235,2]
[418991047,1774713139761,-10000.01,0.00012235,2]
[418991048,1774713139890,-10000.01,0.00012235,2]
[418991049,1774713142407,-10000.01,0.00012235,2]
[418991050,1774713142514,-10000.01,0.00012235,2]
[418991051,1774713427707,-646.22,0.00011375,2]
[418991052,1774713427767,-1287.05932857,0.00011375,30]
[418991053,1774713427827,-250.0,0.00011375,2]
[418991054,1774713427888,-393.92,0.00011464,2]
[418991055,1774713427945,-150.0,0.00011464,2]
[418991056,1774713428005,-1287.05932857,0.00011464,30]
[418991057,1774713428066,-255.86898619,0.00011486,2]
[418991058,1774713428129,-401.76,0.00011748,2]
[418991059,1774713441442,-250.0,0.00011375,2]
[418991060,1774713441500,-1287.05932857,0.00011748,30]
[418991061,1774713441557,-150.0011,0.000121,2]
[418991062,1774713441614,-300.0,0.00012124,2]
[418991063,1774713441673,-300.0,0.00012124,2]
[418991064,1774713441727,-260.65991846,0.00012125,2]
[418991065,1774713441784,-150.0,0.00012125,2]
[418991066,1774713441845,-150.0,0.00012125,2]
[418991067,1774713441900,-1287.05932857,0.00012125,30]
[418991068,1774713441957,-260.65991846,0.0001213,2]
[418991069,1774713442016,-9.13081188,0.00012133,2]
[418991070,1774713442839,-630.20926966,0.00012133,2]
[418991071,1774713447695,-560.65991846,0.00012133,2]
[418991072,1774713447768,-260.65991846,0.00012134,2]
[418991073,1774713447834,-1225.9301347,0.00012135,2]
[418991074,1774713447902,-1225.9301347,0.00012135,2]
[418991075,1774713447966,-235.5051,0.00012135,2]
[418991076,1774713448028,-150.0,0.00012224,2]
[418991077,1774713448094,-1200.0,0.00012225,2]
[418991078,1774713448350,-500.0,0.00012225,2]
[418991079,1774713448416,-500.0,0.00012225,2]
[418991080,1774713448482,-347.84790117,0.00012225,2]
[418991081,1774713448549,-578.53456078,0.00012225,2]
[418991082,1774713448614,-500.0,0.00012225,2]
[418991083,1774713448683,-500.0,0.00012225,2]
[418991084,1774713448747,-500.0,0.00012225,2]
[418991085,1774713448811,-325.03684216,0.00012225,2]
[418991086,1774713448874,-555.4473677,0.00012225,2]
[418991087,1774713448946,-500.0,0.00012225,2]
[418991088,1774713449919,-282.63958736,0.00012225,2]
[418991089,1774713449975,-217.36041264,0.00012225,2]
[418991090,1774713449985,-168.91624374,0.00012225,2]
[418991091,1774713450635,-331.08375626,0.00012225,2]
[418991092,1774713450702,-500.0,0.00012225,2]
[418991093,1774713450772,-500.0,0.00012225,2]
[418991094,1774713450837,-500.0,0.00012225,2]
[418991095,1774713450900,-500.0,0.00012225,2]
[418991096,1774713450962,-500.0,0.00012225,2]
[418991097,1774713451028,-500.0,0.00012225,2]
[418991098,1774713451093,-500.0,0.00012225,2]
[418991099,1774713451161,-500.0,0.00012225,2]
[418991100,1774713451228,-500.0,0.00012225,2]
[418991101,1774713451607,-500.0,0.00012225,2]
[418991102,1774713451677,-500.0,0.00012225,2]
[418991103,1774713451742,-500.0,0.00012225,2]
[418991104,1774713451808,-500.0,0.00012225,2]
[418991105,1774713451873,-500.0,0.00012225,2]
[418991106,1774713451938,-500.0,0.00012225,2]
[418991107,1774713452000,-500.0,0.00012225,2]
[418991108,1774713452064,-500.0,0.00012225,2]
[418991109,1774713452126,-500.0,0.00012225,2]
[418991110,1774713453127,-337.84248748,0.00012226,2]
[418991111,1774713453175,-1000.01,0.00012226,2]
[418991112,1774713453608,-10000.01,0.00012226,2]
[418991114,1774713693072,-1065.14,0.00011928,2]
[418991115,1774713693137,-292.0,0.00011928,2]
[418991116,1774713693194,-300.0,0.00012124,2]
[418991117,1774713693256,-1167.0,0.00012125,2]
[418991118,1774713693321,-1200.0,0.00012125,2]
[418991119,1774713693377,-300.0,0.00012125,2]
[418991120,1774713693439,-150.0,0.00012125,2]
[418991121,1774713693499,-300.0,0.00012125,2]
[418991122,1774713693705,-2648.463,0.00012125,2]
[418991123,1774713693764,-158.907,0.00012125,2]
[418991124,1774713693821,-237.765,0.00012126,2]
[418991125,1774713694038,-3909.74,0.00012126,2]
[418991126,1774713694495,-451.73,0.00012126,2]
[418991127,1774713694559,-3909.74,0.00012126,2]
[418991128,1774713694608,-2180.53,0.00012126,2]
[418991129,1774713694668,-2592.8325,0.00012126,2]
[418991130,1774713694733,-4814.345,0.00012126,2]
[418991131,1774713694807,-2500.0,0.00012126,2]
[418991132,1774713694816,-92.8325,0.00012126,2]
[418991133,1774713694866,-6673.6745,0.00012126,2]
[418991134,1774713694875,-167.36890573,0.00012135,2]
[418991135,1774713694884,-919.44760106,0.00012135,2]
[418991136,1774713694894,-1778.3249814,0.00012173,2]
[418991137,1774713694903,-461.19401181,0.00012216,2]
[418991138,1774713695009,-10000.01,0.00012216,2]
[418991139,1774713695067,-7407.1775,0.00012216,2]
[418991140,1774713695125,-4814.345,0.00012216,2]
[418991141,1774713695182,-371.32,0.00012216,2]
[418991142,1774713695243,-9204.63951126,0.00012216,2]
[418991143,1774713695253,-795.37048874,0.00012225,3]
[418991144,1774713698543,-272.17846774,0.00012225,3]
[418991145,1774713698609,-500.0,0.00012225,2]
[418991146,1774713698671,-500.0,0.00012225,2]
[418991147,1774713698730,-277.52578951,0.00012225,2]
[418991148,1774713698800,-500.0,0.00012225,2]
[418991149,1774713698871,-243.49353082,0.00012225,2]
[418991150,1774713698929,-500.0,0.00012225,2]
[418991151,1774713698991,-500.0,0.00012225,2]
[418991152,1774713699050,-334.17806526,0.00012225,2]
[418991153,1774713699108,-500.0,0.00012225,2]
[418991154,1774713699172,-500.0,0.00012225,2]
[418991155,1774713699236,-187.63531001,0.00012225,2]
[418991156,1774713699489,-500.0,0.00012225,2]
[418991157,1774713699551,-150.0,0.00012225,2]
[418991158,1774713699619,-196.87275329,0.00012225,2]
[418991159,1774713699681,-3306.26449342,0.00012226,2]
[418991160,1774713699934,-1693.73550658,0.00012226,2]
[418991161,1774713700576,-369.98767332,0.00012226,2]
[418991162,1774713700636,-1693.73550658,0.00012226,2]
[418991163,1774713700683,-6612.53898684,0.00012226,2]
[418991164,1774713701690,-10000.01,0.00012226,2]
[418991165,1774713701848,-10000.01,0.00012226,2]
[418991166,1774713702035,-10000.01,0.00012226,2]
[418991167,1774713702207,-10000.01,0.00012226,2]
[418991168,1774713702376,-10000.01,0.00012226,2]
[418991169,1774713702580,-10000.01,0.00012226,2]
[418991170,1774713702757,-10000.01,0.00012226,2]
[418991177,1774713921841,10000.0,9.498e-05,2]
[418991178,1774713931207,0.01,9.498e-05,2]
[418991179,1774713931263,9999.99,9.498e-05,2]
[418991180,1774713938620,5000.01,9.498e-05,2]
[418991181,1774713938644,4999.99,9.498e-05,2]
[418991182,1774713946614,0.02,9.498e-05,2]
[418991183,1774713946637,5000.01,9.498e-05,2]
[418991184,1774713946660,4999.97,9.498e-05,2]
[418991185,1774713954329,0.04,9.498e-05,2]
[418991186,1774713954353,5000.01,9.498e-05,2]
[418991187,1774713954377,4999.95,9.498e-05,2]
[418991188,1774713982290,0.06,9.498e-05,2]
[418991189,1774713982316,5000.01,9.498e-05,2]
[418991190,1774713982342,4999.93,9.498e-05,2]
[418991191,1774713989912,0.08,9.498e-05,2]
[418991192,1774713990086,5000.01,9.498e-05,2]
[418991193,1774713990110,4999.91,9.498e-05,2]
[418991194,1774714002445,0.1,9.133e-05,2]
[418991195,1774714002512,732.28,9.133e-05,2]
[418991196,1774714003566,9267.73,9.498e-05,2]
[418991197,1774714003627,732.27,9.498e-05,2]
[418991198,1774714011743,5000.01,9.498e-05,2]
[418991199,1774714011768,4999.99,9.498e-05,2]
[418991200,1774714057763,5000.01,8e-05,2]
[418991201,1774714057785,3713.35503267,8e-05,2]
[418991206,1774714064358,1286.65496733,9.498e-05,2]
[418991207,1774714064384,5000.01,9.498e-05,2]
[418991208,1774714064409,3713.33503267,9.498e-05,2]
[418991209,1774714065783,700.0,8.906e-05,2]
[418991210,1774714133224,600.0,8.15e-05,2]
[418991211,1774714133862,663.82,8.876e-05,2]
[418991217,1774714196444,1300.0,8.371e-05,2]
[418991218,1774714196866,1160.0,9.197e-05,2]
[418991219,1774714225119,-8003.94,9.5e-05,3]
[418991220,1774714225291,-10000.01,9.5e-05,3]
[418991221,1774714225493,-10000.01,9.5e-05,3]
[418991222,1774714227606,-10000.01,9.5e-05,3]
[418991223,1774714227679,-10000.01,9.5e-05,3]
[418991224,1774714227872,-10000.01,9.5e-05,3]
[418991240,1774714232118,-347.43508066,9.5e-05,3]
[418991241,1774714232130,-1295.21988168,9.5e-05,3]
[418991242,1774714232143,-19687.07055404,9.5e-05,3]
[418991243,1774714232154,-3478.45588578,9.5e-05,3]
[418991244,1774714232305,-321.55982235,9.5e-05,3]
[418991245,1774714232316,-900.10494811,9.5e-05,3]
[418991246,1774714232328,-436.8430534,9.5e-05,3]
[418991247,1774714232339,-516.9,9.5e-05,3]
[418991248,1774714232351,-952.88736,9.5e-05,3]
[418991249,1774714232372,-687.16138692,9.5e-05,3]
[418991250,1774714232436,-156268.37952356,9.5e-05,3]
[418991251,1774714232446,-262.58,9.56e-05,2]
[418991252,1774714232456,-254.0,9.56e-05,2]
[418991253,1774714232466,-150.0,9.8e-05,2]
[418991254,1774714232475,-421.12311814,9.852e-05,2]
[418991255,1774714232485,-150.0,9.852e-05,2]
[418991257,1774714232495,-300.0,9.852e-05,2]
[418991259,1774714232504,-1200.0,9.852e-05,2]
[418991260,1774714232514,-122207.22352578,9.853e-05,2]
[418991261,1774714232524,-250.0,9.853e-05,2]
[418991262,1774714232533,-193.0,9.853e-05,2]
[418991263,1774714232543,-1570.0,9.853e-05,2]
[418991264,1774714232553,-1209.12,9.892e-05,2]
[418991266,1774714232563,-1110.61079819,0.0001,2]
[418991268,1774714232573,-640.28586185,0.00010262,2]
[418991270,1774714232582,-250.0,0.00010498,2]
[418991272,1774714232592,-5000.0,0.00010516,2]
[418991273,1774714232602,-369.51520311,0.00010516,2]
[418991274,1774714232612,-1426.65,0.00010671,2]
[418991275,1774714232622,-255.0,0.00010837,2]
[418991276,1774714232632,-420.0,0.00010837,2]
[418991277,1774714232642,-1680.0,0.00010837,2]
[418991278,1774714232652,-193.0,0.00010838,2]
[418991279,1774714232662,-250.0,0.00010838,2]
[418991280,1774714232674,-5000.0,0.00010838,2]
[418991281,1774714232684,-6795.61,0.00011339,2]
[418991282,1774714232695,-150.0,0.00011339,2]
[418991283,1774714232704,-200.0,0.000115,4]
[418991284,1774714232714,-500.0,0.000116,4]
[418991285,1774714232724,-800.0,0.000117,4]
[418991286,1774714232734,-1100.0,0.000118,4]
[418991287,1774714232744,-500.0,0.00011828,2]
[418991288,1774714232754,-1400.0,0.000119,4]
[418991289,1774714232763,-480.0,0.00011921,2]
[418991290,1774714232772,-2285.0,0.00011921,2]
[418991291,1774714232782,-960.77,0.00011972,2]
[418991292,1774714232792,-75746.6708,0.00012126,2]
[418991293,1774714232802,-1056.77823064,0.00012135,2]
[418991294,1774714232812,-854.41304859,0.00012135,2]
[418991295,1774714232821,-1813.19409868,0.00012135,2]
[418991296,1774714232831,-534.00815537,0.00012135,2]
[418991297,1774714232841,-1045.61027674,0.00012135,2]
[418991298,1774714232851,-32419.0,0.00012192,2]
[418991299,1774714232862,-2211.74,0.00012198,2]
[418991300,1774714232872,-348.8697098,0.00012216,2]
[418991301,1774714232882,-151.0,0.00012219,2]
[418991302,1774714232892,-151.0,0.00012219,2]
[418991303,1774714232902,-151.0,0.00012219,2]
[418991304,1774714232912,-151.0,0.00012219,2]
[418991305,1774714232921,-151.0,0.00012219,2]
[418991306,1774714232930,-151.0,0.00012219,2]
[418991307,1774714232940,-151.0,0.00012219,2]
[418991308,1774714232950,-151.0,0.00012219,2]
[418991309,1774714232959,-151.0,0.00012219,2]
[418991310,1774714232968,-151.0,0.00012219,2]
[418991311,1774714232978,-151.0,0.00012219,2]
[418991312,1774714232987,-151.0,0.00012219,2]
[418991313,1774714232997,-151.0,0.00012219,2]
[418991314,1774714233006,-151.0,0.00012219,2]
[418991315,1774714233016,-151.0,0.00012219,2]
[418991316,1774714233026,-151.0,0.00012219,2]
[418991317,1774714233037,-151.0,0.00012219,2]
[418991318,1774714233047,-151.0,0.00012219,2]
[418991319,1774714233056,-151.0,0.00012219,2]
[418991320,1774714233067,-151.0,0.00012219,2]
[418991321,1774714233077,-151.0,0.00012219,2]
[418991322,1774714233086,-151.0,0.00012219,2]
[418991323,1774714233098,-151.0,0.00012219,2]
[418991324,1774714233108,-151.0,0.00012219,2]
[418991325,1774714233118,-151.0,0.00012219,2]
[418991326,1774714233127,-161.59245401,0.00012219,2]
[418991327,1774714233137,-1000.0,0.00012225,2]
[418991328,1774714233147,-300.0,0.00012225,2]
[418991329,1774714233156,-150.0,0.00012225,2]
[418991330,1774714233166,-150.0,0.00012225,2]
[418991331,1774714233177,-150.0,0.00012225,2]
[418991332,1774714233187,-160.44271091,0.00012225,2]
[418991333,1774714233198,-898361.25985878,0.00012226,2]
[418991334,1774714233210,-165459.90204296,0.00012226,2]
[418991335,1774714233222,-238723.56436629,0.00012226,2]
[418991336,1774714233235,-146548.71244476,0.00012226,2]
[418991337,1774714233248,-1254.41808677,0.00012226,2]
[418991340,1774714238243,-200.0,0.000116,4]
[418991341,1774714238252,-400.0,0.000117,4]
[418991342,1774714238262,-1548.650145,0.00012135,2]
[418991343,1774714238273,-18048.4527485,0.00012226,2]
[418991344,1774714238373,-2686.26121667,0.00012226,2]
[418991345,1774714238432,-390.26603471,0.00012226,2]
[418991346,1774714238471,-327835.89845253,0.00012226,2]
[418991347,1774714238603,-265.712551,0.00012226,2]
[418991348,1774714238615,-2851.21217869,0.00012226,2]
[418991349,1774714238628,-311.67825113,0.00012226,2]
[418991350,1774714238639,-449.3404125,0.00012226,2]
[418991493,1774714244520,-494.37922957,0.000118,4]
[418991494,1774714244534,-205.62077043,0.000118,4]
[418991495,1774714244546,-900.0,0.000119,4]
[418991496,1774714244555,-110958.12152027,0.00012226,2]
[418991497,1774714244567,-15633.17424791,0.00012226,2]
[418991498,1774714244578,-2243.37561959,0.00012226,2]
[418991557,1774714246126,-3200.0,0.00012226,2]
[418991558,1774714246138,-6332.407382,0.00012226,2]
[418991559,1774714246149,-500.0,0.00012226,2]
[418991560,1774714246496,-432205.47023113,0.00012226,2]
[418991561,1774714246509,-312.3353603,0.00012226,2]
[418991562,1774714246520,-35414.24233929,0.00012226,2]
[418991563,1774714246530,-500.0,0.00012235,2]
[418991564,1774714246540,-999.99,0.00012244,2]
[418991565,1774714246550,-19999.99,0.00012244,2]
[418991566,1774714246559,-150.99,0.00012244,2]
[418991567,1774714246569,-9999.99,0.00012244,2]
[418991568,1774714246578,-299.99,0.00012244,2]
[418991569,1774714246588,-150.99,0.00012244,2]
[418991570,1774714246598,-500.0,0.00012273,2]
[418991571,1774714246608,-500.0,0.00012273,2]
[418991572,1774714246618,-164.27795554,0.00012273,2]
[418991573,1774714246628,-500.0,0.00012273,2]
[418991574,1774714246638,-314.67574079,0.00012273,2]
[418991575,1774714246648,-500.0,0.00012273,2]
[418991576,1774714246658,-167.47764927,0.00012273,2]
[418991577,1774714246668,-500.0,0.00012273,2]
[418991578,1774714246679,-245.41415789,0.00012273,2]
[418991579,1774714246688,-235.0,0.00012344,2]
[418991580,1774714246698,-2253.18,0.0001252,2]
[418991581,1774714246708,-1045.61027672,0.00012555,2]
[418991582,1774714246718,-854.41304855,0.00012675,2]
[418991583,1774714246728,-157.08,0.00012713,2]
[418991584,1774714246738,-1120.0,0.00012852,2]
[418991585,1774714246747,-1158.21,0.00012889,2]
[418991586,1774714246757,-1045.61027672,0.00012975,2]
[418991587,1774714246767,-250.0,0.00013,2]
[418991588,1774714246777,-4123.56638896,0.00013,2]
[418991589,1774714246787,-1629.58,0.00013005,2]
[418991590,1774714246796,-5000.0,0.0001301,2]
[418991591,1774714246806,-5000.0,0.0001301,2]
[418991592,1774714246815,-187.0,0.00013105,2]
[418991593,1774714246824,-13595.6,0.00013155,2]
[418991594,1774714246834,-854.41304855,0.00013215,2]
[418991595,1774714246844,-1045.61027672,0.00013395,2]
[418991596,1774714246854,-1438.76,0.00013529,2]
[418991597,1774714246863,-477.31568415,0.00013699,2]
[418991598,1774714246873,-1671.77,0.000137,2]
[418991599,1774714246883,-2520.74,0.0001375,2]
[418991600,1774714246892,-854.41304855,0.00013755,2]
[418991601,1774714246902,-1045.61027672,0.00013815,2]
[418991602,1774714246912,-753.9,0.00013996,2]
[418991603,1774714246921,-518.0,0.00014,2]
[418991604,1774714246930,-2970.12771553,0.00014,7]
[418991605,1774714246941,-154.68254149,0.00014,2]
[418991606,1774714246952,-1665.16,0.00014024,2]
[418991607,1774714246962,-1548.65014498,0.00014076,2]
[418991608,1774714246972,-159.35,0.0001415,2]
[418991609,1774714246981,-1045.61027672,0.00014236,2]
[418991610,1774714246991,-854.41304855,0.00014296,2]
[418991611,1774714247002,-1045.61027672,0.00014656,2]
[418991612,1774714247012,-854.41304855,0.00014836,2]
[418991613,1774714247022,-1056.7782306,0.00014925,2]
[418991614,1774714247032,-300.0,0.00015,2]
[418991615,1774714247042,-1504.51515122,0.00015,2]
[418991616,1774714247051,-1533.15760661,0.00015,2]
[418991617,1774714247061,-1045.61027672,0.00015076,2]
[418991618,1774714247071,-159.35,0.00015239,2]
[418991619,1774714247081,-854.41304855,0.00015376,2]
[418991620,1774714247091,-1045.61027672,0.00015496,2]
[418991621,1774714247100,-1135.46418653,0.000156,2]
[418991622,1774714247110,-1200.0,0.000156,5]
[418991623,1774714247120,-854.9565335,0.00015634,2]
[418991624,1774714247129,-200.0,0.000157,5]
[418991625,1774714247139,-200.0,0.000157,5]
[418991626,1774714247150,-200.0,0.000158,5]
[418991627,1774714247159,-1287.05932857,0.00015875,30]
[418991628,1774714247169,-200.0,0.000159,5]
[418991629,1774714247178,-1813.19409868,0.00015916,2]
[418991630,1774714247187,-1045.61027672,0.00015916,2]
[418991632,1774714247198,-348.8697098,0.0001599,2]
[418991634,1774714247208,-348.8697098,0.0001599,2]
[418991636,1774714247218,-165.0,0.00016,2]
[418991638,1774714247228,-65037.22394035,0.00016,2]
[418991640,1774714247240,-987.61314542,0.00016,2]
[418991642,1774714247252,-412.6,0.00016,2]
[418991645,1774714247263,-10750.78396694,0.00016,2]
[418991647,1774714247275,-87742.71806982,0.00016,2]
[418991668,1774714261323,1100.0,8.908e-05,2]
[418991669,1774714261891,395.18,9.07e-05,2]
[418991670,1774714262417,546.03,9.311e-05,2]
[418991671,1774714328134,439.95,9.117e-05,2]
[418991673,1774714372126,-860.0,9.603e-05,2]
[418991674,1774714451958,451.7,9.22e-05,2]
[418991675,1774714509549,371.020484,7.945e-05,2]
[418991676,1774714513473,752.11,8.952e-05,2]
[418991677,1774714568006,654.863991,7.945e-05,2]
[418991678,1774714575767,1680.0,8.696e-05,2]
[418991679,1774714576287,1865.82,9.438e-05,2]
[418991680,1774714627929,2504.495525,7.945e-05,2]
[418991681,1774714627984,16.516485,7.945e-05,2]
[418991683,1774714638326,852.59,9.091e-05,2]
[418991684,1774714686481,-780.0,9.893e-05,2]
[418991685,1774714686539,-273.54030607,9.893e-05,2]
[418991686,1774714686600,-775.47766364,9.947e-05,2]
[418991687,1774714686662,-172.4994593,0.0001,2]
[418991688,1774714686722,-243.53234881,0.0001,2]
[418991689,1774714686780,-250.0,0.00010031,2]
[418991690,1774714686838,-360.04368935,0.00010069,2]
[418991691,1774714686899,-780.0,0.00010169,2]
[418991692,1774714686957,-273.54030607,0.00010169,2]
[418991693,1774714687020,-896.65,0.00010205,2]
[418991694,1774714687078,-89.44245352,0.00010405,2]
[418991695,1774714687795,-210.55754648,0.00010405,2]
[418991696,1774714687864,-1340.0,0.00010406,2]
[418991697,1774714687928,-273.54030607,0.00010406,2]
[418991698,1774714687993,-300.0,0.00010458,2]
[418991699,1774714688058,-250.0,0.00010459,2]
[418991700,1774714688125,-755.69,0.00010492,2]
[418991701,1774714688190,-273.54030607,0.00010492,2]
[418991702,1774714688256,-250.0,0.00010882,2]
[418991703,1774714688412,-5000.0,0.00010882,2]
[418991704,1774714692258,-5000.0,0.00010882,2]
[418991705,1774714698357,-180.8246,0.000113,2]
[418991706,1774714698422,-1200.0,0.00011338,2]
[418991707,1774714698492,-150.0,0.00011338,2]
[418991708,1774714698560,-156.05,0.00011339,2]
[418991709,1774714698941,-442.90251324,0.00011339,2]
[418991710,1774714698996,-10000.01,0.00011339,2]
[418991711,1774714704861,-1500.0,0.00010588,2]
[418991712,1774714704923,-1300.0,0.0001086,2]
[418991713,1774714704988,-1428.88,0.00011019,2]
[418991714,1774714705242,-1542.25,0.00011339,2]
[418991715,1774714707859,-1674.30748676,0.00011339,2]
[418991716,1774714707920,-1852.42,0.00011339,2]
[418991717,1774714710154,172.4994593,0.0001,2]
[418991718,1774714740248,1095.03064577,0.0001,2]
[418991719,1774714752772,200.0,0.000109,2]
[418991720,1774714767093,1839.83,9.607e-05,2]
[418991721,1774714767627,1417.15,9.947e-05,2]
[418991722,1774714768193,1307.61,0.00010245,2]
[418991723,1774714769033,1100.0,0.00010379,2]
[418991724,1774714769672,1450.0,0.00010711,2]
[418991725,1774714800137,238.6319444,0.0001,2]
[418991726,1774714833813,600.0,9.704e-05,2]
[418991727,1774714834369,940.0,0.00010012,2]
[418991728,1774714834926,800.0,0.00010137,2]
[418991729,1774714836062,306.7880556,0.00010559,2]
[418991730,1774714836942,-593.2119444,0.00010559,2]
[418991731,1774714837014,-700.0,0.00010739,2]
[418991732,1774714900330,660.0,0.00010345,2]
[418991733,1774714939870,481.53990502,0.00010882,2]
[418991734,1774714964309,314.93,0.0001004,2]
[418991735,1774715025987,775.24,9.715e-05,2]
[418991736,1774715088891,252.0,9.38e-05,2]
[418991737,1774715089443,600.0,0.00010323,2]
[418991738,1774715203982,-900.0,0.0001098,2]
[418991739,1774715204045,-250.0,0.00010981,2]
[418991740,1774715204108,-276.0,0.00010982,2]
[418991741,1774715204174,-900.0,0.00010982,2]
[418991742,1774715204237,-273.54030606,0.00010982,2]
[418991743,1774715204306,-1208.81,0.00011035,2]
[418991744,1774715204373,-310.9929055,0.00011053,2]
[418991745,1774715204441,-200.0,0.0001109,2]
[418991746,1774715204514,-505.64,0.00011104,2]
[418991747,1774715204583,-166.66,0.00011117,2]
[418991748,1774715210081,-1680.0,0.00011205,2]
[418991749,1774715210149,-880.0,0.00011271,2]
[418991750,1774715210216,-300.83,0.00011348,2]
[418991751,1774715210280,-166.66,0.00011351,2]
[418991752,1774715210344,-300.0,0.00011406,2]
[418991753,1774715210409,-1200.0,0.00011407,2]
[418991754,1774715216938,-1121.24,0.00011408,2]
[418991755,1774715217003,-300.0,0.0001142,2]
[418991756,1774715217067,-300.0,0.00011421,2]
[418991757,1774715217134,-300.0,0.00011421,2]
[418991758,1774715217201,-267.62,0.00011421,2]
[418991759,1774715217276,-500.0,0.00011421,2]
[418991760,1774715217349,-500.0,0.00011421,2]
[418991761,1774715217553,-500.0,0.00011421,2]
[418991762,1774715217629,-500.0,0.00011421,2]
[418991763,1774715217705,-500.0,0.00011421,2]
[418991764,1774715244023,195.14,9.91e-05,2]
[418991765,1774715299892,-195.14,0.00010901,2]
[418991766,1774715299961,-502.31,0.00011057,2]
[418991767,1774715300032,-321.02660334,0.0001132,2]
[418991768,1774715300107,-1558.42122223,0.00011322,2]
[418991769,1774715300172,-300.0,0.0001142,2]
[418991770,1774715300240,-300.0,0.0001142,2]
[418991771,1774715300306,-250.0,0.00011421,2]
[418991772,1774715300378,-500.0,0.00011421,2]